[Event "7th Sharjah Masters 2024"]
[Site "Sharjah"]
[Date "2024.05.17"]
[Round "4.26"]
[White "Horvath, Dominik"]
[Black "Gledura, Benjamin"]
[Result "1/2-1/2"]
[ECO "B07"]
[WhiteElo "2554"]
[BlackElo "2619"]
[Annotator "TA"]
[PlyCount "87"]
[EventDate "2024.05.13"]
[EventType "swiss"]
[EventCountry "UAE"]
[SourceTitle "playchess.com"]
[Source "ChessBase"]
[SourceQuality "1"]
[TimeControl "5400+30"]

{[%evp 21,87,7,8,0,0,0,0,0,0,0,0,0,0,0,0,0,0,0,0,0,10,37,43,0,0,0,0,-38,-24,-26,-15,-8,-12,-15,-24,-6,-6,0,-10,-86,-38,-65,-57,-78,-81,-73,0,-39,0,0,0,0,0,0,0,0,0,0,0,0,0,0,0,0,0,0,0,0]} 1. Nf3 {[%emt 0:00:09]} d6 {[%emt 0:01:17]} 2. d4 {[%emt 0:00:33]} g6 {[%emt 0:00:25]} 3. g3 {[%emt 0:06:19]} Bg7 {[%emt 0:00:37]} 4. Bg2 {[%emt 0:00:06]} Nf6 {[%emt 0:00:22]} 5. O-O {[%emt 0:00:08]} O-O {[%emt 0:00:28]} 6. Re1 {[%emt 0:00:07]} Nbd7 {[%emt 0:08:04]} 7. e4 {[%emt 0:01:46]} e5 {[%emt 0:00:20]} 8. Nc3 {[%emt 0:01:35]} c6 {[%emt 0:05:27]} 9. a4 {[%emt 0:00:33][%cal Ba2a4,Ba4a5][%mdl 32]} Re8 {[%emt 0:11:35]} 10. a5 {[%emt 0:03:15]} Qc7 {[%emt 0:00:29]} 11. h3 {[%emt 0:00:56]} Rb8 {[%emt 0:09:08]} 12. Be3 {[%emt 0:00:53]} b5 {[%emt 0:00:50]} 13. axb6 {[%emt 0:00:06]} axb6 {[%emt 0:00:06]} 14. d5 {[%emt 0:05:52]} Bb7 {[%emt 0:04:12]} 15. Nh2 {[%emt 0:39:05]} b5 {[%emt 0:06:58]} 16. dxc6 {[%emt 0:02:59]} Qxc6 {[%emt 0:12:00]} 17. Ng4 {[%emt 0:00:39]} b4 {[%emt 0:01:01]} 18. Nxf6+ {[%emt 0:05:19]} Nxf6 {[%emt 0:00:11]} 19. Nd5 {[%emt 0:00:06]} Nxd5 {[%emt 0:00:16]} 20. exd5 {[%emt 0:00:13]} Qc4 {[%emt 0:01:40]} 21. Ra4 {[%emt 0:02:27]} Bc8 {[%emt 0:10:06]} 22. c3 {[%emt 0:05:33]} Bd7 {[%emt 0:02:08]} 23. Ra7 {[%emt 0:00:37][%cal Ba4a7,Ba7d7,Bd7d6,Bd6c6][%mdl 32]} (23. Rxb4 {simplifies} Rxb4 24. cxb4 Qxb4 25. Qd2) 23... bxc3 {[%emt 0:05:13]} 24. Rxd7 {[%emt 0:02:32]} cxb2 {[%emt 0:01:19] [#] ...Qb4 is the strong threat.} 25. Bf1 $1 {[%emt 0:11:15]} Qc8 {[%emt 0:05:39]} (25... b1=Q $2 {loses.} 26. Bxc4 Qb4 27. Bf1 $18) 26. Rxd6 {[%emt 0:00:18]} b1=Q {[%emt 0:00:13]} ({Much worse is} 26... b1=B $6 27. Ra6 $16) 27. Qxb1 {[%emt 0:00:05]} Rxb1 {[%emt 0:00:06]} 28. Rxb1 {[%emt 0:00:03]} Bf8 {[%emt 0:01:33]} 29. Rc6 {[%emt 0:06:03]} Qd7 {[%emt 0:00:58]} 30. Bc4 {[%emt 0:01:13]} (30. Rb5 $11 {remains equal.}) 30... Rc8 {[%emt 0:06:10]} (30... Ra8 $17) 31. Rbb6 $15 {[%emt 0:00:04]} Qxh3 {[%emt 0:01:59]} 32. Rb7 {[%emt 0:02:20]} Ra8 {[%emt 0:03:18]} 33. Ba7 {[%emt 0:00:10]} Rc8 {[%emt 0:01:41] Prevents d6} 34. Be3 {[%emt 0:01:12]} h5 {[%emt 0:00:38]} (34... Kg7 $5) 35. Bf1 $1 {[%emt 0:00:35] A strong pair of Bishops. The position is equal.} Qg4 {[%emt 0:00:37]} 36. Be2 $1 {[%emt 0:01:59]} Qxe2 {[%emt 0:00:29]} 37. Rxc8 {[%emt 0:00:08] [#] Hoping for Rbb8. Active counter play!} Qd1+ {[%emt 0:00:31]} 38. Kh2 {[%emt 0:00:04] And now Rbb8 would win.} Kg7 $1 {[%emt 0:00:05]} 39. Rd8 {[%emt 0:01:21]} h4 {[%emt 0:00:37]} 40. gxh4 {[%emt 0:00:34]} Qg4 {[%emt 0:00:18]} 41. Bg5 {[%emt 0:01:03] Rdd7 would now be deadly. Really sharp!} Qf3 {[%emt 0:00:54]} 42. Be3 {[%emt 0:00:43]} Qf6 {[%emt 0:00:31][%csl LRd8,LRh4]} 43. Rdd7 {[%emt 0:00:04] Black must now prevent Rxf7+.} Qxh4+ {[%emt 0:00:09]} 44. Kg2 {[%emt 0:00:17] Weighted Error Value: White=0.06 (flawless) /Black=0.08 (flawless) .  Mistake:       	White=1     	Black=1      Inaccurate:     	White=2     	Black=2      OK:         	White=14    	Black=16     Best:        	White=3     	Black=4      Strong:       	White=3     	Black=1} 1/2-1/2

[Event "7th Sharjah Masters 2024"]
[Site "Sharjah"]
[Date "2024.05.17"]
[Round "4.27"]
[White "Adhiban, B.."]
[Black "Aditya Mittal"]
[Result "1/2-1/2"]
[ECO "C70"]
[WhiteElo "2523"]
[BlackElo "2608"]
[Annotator "TA"]
[PlyCount "52"]
[EventDate "2024.05.13"]
[EventType "swiss"]
[EventCountry "UAE"]
[SourceTitle "playchess.com"]
[Source "ChessBase"]
[SourceQuality "1"]
[TimeControl "5400+30"]

{[%evp 16,52,45,30,41,32,37,23,62,37,34,56,34,42,35,-5,22,33,14,17,33,29,60,11,18,-8,-8,0,-5,-9,0,-208,1014,0,0,0,109,0,0]} 1. e4 {[%emt 1:31:00]} e5 {[%emt 0:00:01]} 2. Nf3 {[%emt 0:00:00]} Nc6 {[%emt 0:00:02]} 3. Bb5 {[%emt 0:00:00][%cal Bf1b5,Bb5a4,Ba4b3][%mdl 32]} a6 {[%emt 0:00:01]} 4. Ba4 {[%emt 0:00:00]} b5 {[%emt 0:00:02]} 5. Bb3 {[%emt 0:00:00]} Na5 {[%emt 0:00:01]} 6. O-O {[%emt 0:00:00]} d6 {[%emt 0:00:02]} 7. d4 exd4 {[%emt 0:00:02]} 8. Nxd4 {[%emt 0:00:00]} Bb7 {[%emt 0:00:09]} 9. Bd2 {[%emt 0:00:00]} Nxb3 {[%emt 0:00:02]} 10. axb3 {[%emt 0:00:00]} Nf6 {[%emt 0:20:07]} 11. Re1 {[%emt 0:00:00]} Nd7 {[%emt 0:11:25] White has an edge.} 12. Nc3 {[%emt 0:00:00] And now Nd5 would win. White has more active pieces.} g6 $1 {[%emt 0:03:59]} 13. Nd5 {[%emt 0:00:00] Hoping for Bc3.} Bg7 {[%emt 0:00:39]} 14. Ba5 {[%emt 0:00:00]} Rc8 {[%emt 0:06:14]} 15. Nf3 {[%emt 0:00:00]} Nb6 {[%emt 0:16:04]} (15... Bxb2 {keeps more tension.} 16. e5 O-O 17. exd6 Bxd5 18. dxc7 Rxc7 19. Qxd5 Bxa1 20. Bxc7 Qxc7 21. Rxa1 Nc5) 16. Bxb6 {[%emt 0:00:00]} cxb6 {[%emt 0:00:37]} 17. c3 {[%emt 0:00:00]} O-O {[%emt 0:00:55]} 18. Qd3 {[%emt 0:00:00]} Re8 {[%emt 0:04:00]} 19. Rad1 {[%emt 0:00:00]} (19. b4 $14) 19... Bxd5 $11 {[%emt 0:08:45]} 20. Qxd5 {[%emt 0:00:00][%cal Ob3b4] [#]} b4 $1 {[%emt 0:00:40]} 21. cxb4 {[%emt 0:00:00]} Bxb2 {[%emt 0:00:42]} 22. Re3 {[%emt 0:00:00]} Qe7 {[%emt 0:04:58]} 23. e5 $2 {[%emt 0:00:00]} Ba3 $4 {[%emt 0:07:19][%mdl 8192]} (23... Bxe5 24. Rde1 $15) (23... dxe5 $19 24. Qe4 Bc3) 24. h3 $2 {[%emt 0:00:00]} (24. Qxd6 Bxb4 25. Qxe7 (25. Qxb6 Bc5 $17) 25... Rxe7 $15) (24. exd6 $18 Qd7 25. Ne5) 24... dxe5 {[%emt 0:01:01]} (24... Bxb4 $2 25. exd6 Qd7 26. Ne5 Rxe5 27. Rxe5 $18) 25. Nxe5 {[%emt 0:00:00]} Qe6 {[%emt 0:01:20] [#]} (25... Bxb4 $2 {is the wrong capture.} 26. Nd7 $18 (26. Nxg6 Qd6 $11)) (25... Qc7 $1 $11) 26. Qf3 {[%emt 0:00:00]} (26. Qd2 $1 $16 Qf6 27. Ng4) 26... Bc1 $1 {[%emt 0:03:54] Weighted Error Value: White=0.64/Black=0.21 (precise) .  Loses game:     	White=1     	---        Missed win:     	White=1     	Black=1      Mistake:       	White=2     	Black=1      Inaccurate:     	White=2     	Black=3      OK:         	White=3     	Black=2      Best:        	---       	Black=3      Strong:       	---       	Black=2      Brilliant:      	---       	Black=1} (26... Bxb4 $2 {perishes.} 27. Ng4 Kg7 28. Rxe6 $18) 1/2-1/2

[Event "7th Sharjah Masters 2024"]
[Site "Sharjah"]
[Date "2024.05.17"]
[Round "4.28"]
[White "Idani, Pouya"]
[Black "Blohberger, Felix"]
[Result "1/2-1/2"]
[ECO "C45"]
[WhiteElo "2605"]
[BlackElo "2506"]
[Annotator "RC"]
[PlyCount "78"]
[EventDate "2024.05.13"]
[EventType "swiss"]
[EventCountry "UAE"]
[SourceTitle "playchess.com"]
[Source "ChessBase"]
[SourceQuality "1"]
[TimeControl "5400+30"]

1. e4 {[%emt 0:00:03]} e5 {[%emt 0:00:05]} 2. Nf3 {[%emt 0:00:04]} Nc6 {[%emt 0:00:05]} 3. d4 {[%emt 0:00:04]} exd4 {[%emt 0:00:07]} 4. Nxd4 {[%emt 0:00:03]} Nf6 {[%emt 0:00:06]} 5. Nxc6 {[%emt 0:00:08]} bxc6 {[%emt 0:00:06]} 6. e5 {[%emt 0:00:06]} Qe7 {[%emt 0:00:08]} 7. Qe2 {[%emt 0:00:03]} Nd5 {[%emt 0:00:08]} 8. h4 {[%emt 0:00:05]} Qe6 {[%emt 0:03:12]} 9. Nd2 {[%emt 0:01:16]} d6 {[%emt 0:00:32]} 10. exd6 {[%emt 0:00:18]} Bxd6 {[%emt 0:00:15]} 11. Nc4 {[%emt 0:00:13]} Bc5 {[%emt 0:00:32]} 12. a3 {[%emt 0:00:26]} O-O {[%emt 0:00:07]} 13. Qxe6 {[%emt 0:00:05]} Bxe6 {[%emt 0:00:05]} 14. Bd3 {[%emt 0:00:07]} Rfe8 {[%emt 0:00:21]} 15. O-O {[%emt 0:02:41]} Bg4 {[%emt 0:00:32]} 16. Bd2 {[%emt 0:04:19]} Be2 {[%emt 0:00:08]} 17. Rfe1 {[%emt 0:00:43]} Bxd3 {[%emt 0:00:09]} 18. cxd3 {[%emt 0:00:08]} Bd4 {[%emt 0:00:26]} 19. Kf1 {[%emt 0:18:53]} Reb8 {[%emt 0:20:17]} 20. Rab1 {[%emt 0:09:36]} Rb3 {[%emt 0:05:32]} 21. Na5 {[%emt 0:14:48]} Rxb2 {[%emt 0:00:35]} 22. Rxb2 {[%emt 0:00:09]} Bxb2 {[%emt 0:00:07]} 23. Nc4 {[%emt 0:06:42]} Bd4 {[%emt 0:12:32]} 24. Rb1 {[%emt 0:01:29]} Kf8 {[%emt 0:08:20]} 25. Na5 {[%emt 0:00:57]} Ne7 {[%emt 0:06:26]} 26. a4 {[%emt 0:07:41]} Bb6 {[%emt 0:11:15]} 27. Nc4 {[%emt 0:04:50]} Bd4 {[%emt 0:00:50]} 28. Rb7 {[%emt 0:06:45]} Nd5 {[%emt 0:01:09]} 29. Na5 {[%emt 0:00:08]} c5 {[%emt 0:09:40]} 30. Nc6 {[%emt 0:00:25]} a6 {[%emt 0:01:35]} 31. Ba5 {[%emt 0:03:06]} Bf6 {[%emt 0:08:10]} 32. Rb8+ {[%emt 0:07:53]} Rxb8 {[%emt 0:00:20]} 33. Nxb8 {[%emt 0:00:04]} Nb6 {[%emt 0:05:58]} 34. Nxa6 {[%emt 0:01:41]} Nxa4 {[%emt 0:02:42]} 35. g3 {[%emt 0:00:04]} c6 {[%emt 0:01:06]} 36. Nb8 {[%emt 0:03:50]} Ke7 {[%emt 0:00:37]} 37. Nxc6+ {[%emt 0:00:33]} Kd7 {[%emt 0:00:47]} 38. Na7 {[%emt 0:01:10]} Nb2 {[%emt 0:01:09]} 39. Ke2 {[%emt 0:00:18]} c4 {[%emt 0:00:09]} 1/2-1/2

[Event "7th Sharjah Masters 2024"]
[Site "Sharjah"]
[Date "2024.05.17"]
[Round "4.29"]
[White "Esipenko, Andrey"]
[Black "Seemann, Jakub"]
[Result "1-0"]
[ECO "B51"]
[WhiteElo "2704"]
[BlackElo "2475"]
[Annotator "TA"]
[PlyCount "87"]
[EventDate "2024.05.13"]
[EventType "swiss"]
[EventCountry "UAE"]
[SourceTitle "playchess.com"]
[Source "ChessBase"]
[SourceQuality "1"]
[TimeControl "5400+30"]

{[%evp 34,87,73,95,76,72,75,81,86,66,66,29,29,10,48,50,83,92,77,19,97,74,83,74,63,0,0,-13,-6,-87,-90,-120,-119,-181,0,-75,-93,-98,-91,-89,-80,-80,-58,-54,-62,-83,74,75,1762,1586,29986,29987,29987,29988,29988,29989]} 1. e4 {[%emt 0:00:09]} c5 {[%emt 0:00:10]} 2. Nf3 {[%emt 0:00:10]} d6 {[%emt 0:00:06]} 3. Bb5+ {[%emt 0:00:19]} Nd7 {[%emt 0:00:05]} 4. O-O {[%emt 0:00:17]} a6 {[%emt 0:00:08]} 5. Be2 {[%emt 0:00:10]} Ngf6 {[%emt 0:00:50]} 6. d3 {[%emt 0:00:15] B51: Sicilian: Moscow Variation (3 Bb5+) without 3...Bd7.} e6 {[%emt 0:00:33]} 7. a4 {[%emt 0:00:17]} b6 {[%emt 0:00:22]} 8. Nfd2 $5 {[%emt 0:00:14][%mdl 4] is the new trend. Exploring less charted territory.} Bb7 {[%emt 0:00:49]} 9. f4 {[%emt 0:00:37]} Be7 {[%emt 0:01:32]} 10. Nc3 {[%emt 0:00:21]} O-O {[%emt 0:02:52]} 11. Bf3 {[%emt 0:00:19]} Qc7 {[%emt 0:01:02]} 12. g4 {[%emt 0:02:13]} Nb8 {[%emt 0:02:56]} 13. g5 {[%emt 0:04:45]} Nfd7 {[%emt 0:01:21]} 14. Bg2 {[%emt 1:27:24]} Nc6 {[%emt 0:05:30]} 15. Nc4 {[%emt 0:00:00]} Nd4 {[%emt 0:08:41]} 16. Ne3 {[%emt 0:00:00]} b5 $146 {[%emt 0:21:14]} ({Predecessor:} 16... Rfe8 17. Ne2 Bf8 18. Ng3 b5 19. c3 Nc6 20. f5 Nde5 21. d4 cxd4 22. cxd4 Nc4 23. axb5 axb5 24. Rxa8 Bxa8 25. fxe6 fxe6 26. Nxc4 bxc4 {½-½ Baidetsky,V (2488)-Lagarde,M (2640) EU-ch Rapid Zagreb 2023 (8)}) 17. Ne2 {[%emt 0:00:00]} Nxe2+ {[%emt 0:13:57]} (17... bxa4 $11 18. Rxa4 f6) 18. Qxe2 $16 {[%emt 0:00:00]} Rfe8 {[%emt 0:00:16]} 19. Bd2 {[%emt 0:00:00]} Bf8 {[%emt 0:04:34]} 20. Qf2 {[%emt 0:00:00]} Bc6 {[%emt 0:04:14]} 21. b3 {[%emt 0:00:00]} (21. h4 {seems wilder.} Qb7 22. f5 exf5 23. Qxf5 Ne5 24. h5) 21... Qb7 {[%emt 0:02:44]} 22. c4 {[%emt 0:00:00]} bxa4 {[%emt 0:03:47]} 23. bxa4 {[%emt 0:00:00]} Rab8 {[%emt 0:00:06]} 24. Bc3 {[%emt 0:00:00]} Qc7 {[%emt 0:01:08]} 25. h4 {[%emt 0:00:00]} Rb3 {[%emt 0:00:54]} 26. Qc2 {[%emt 0:00:00]} ({White should try} 26. Rac1 $16) 26... Qb8 {[%emt 0:01:57]} (26... Reb8 $11 {remains equal.}) 27. Ng4 {[%emt 0:00:00]} Qb7 {[%emt 0:08:09]} 28. h5 {[%emt 0:00:00]} d5 {[%emt 0:00:40]} 29. cxd5 {[%emt 0:00:00]} (29. Rab1 $14 dxc4 30. dxc4) 29... exd5 $11 {[%emt 0:00:10]} 30. e5 {[%emt 0:00:00]} Rb8 {[%emt 0:02:34]} 31. Rf2 {[%emt 0:00:00]} (31. Rae1 $11 {keeps the balance.} d4 32. Bxc6 Qxc6 33. Bxd4) 31... d4 $17 {[%emt 0:00:49]} 32. Bxc6 {[%emt 0:00:00]} Qxc6 {[%emt 0:00:05]} 33. Bxd4 {[%emt 0:00:00]} (33. Ba5 $17 {is a better defense.}) 33... Qd5 $2 {[%emt 0:01:33]} (33... Qe6 $1 $19 {[%cal Re6g4]} 34. f5 Qd5) 34. Bc3 {[%emt 0:00:00]} (34. Be3 $1 $11) 34... c4 $17 {[%emt 0:01:07]} 35. d4 {[%emt 0:04:22]} Rxc3 {[%emt 0:06:57]} 36. Qxc3 {[%emt 0:00:01]} Rb3 {[%emt 0:00:05]} 37. Qe1 {[%emt 0:02:50]} (37. Ne3 $2 Qe4 38. Qxc4 Rxe3 $19) 37... Rg3+ {[%emt 0:02:33]} (37... Qxd4 $2 38. Rd1 Rd3 39. Rxd3 Qxd3 40. Kg2 $18) 38. Kh2 {[%emt 0:00:04]} Rxg4 {[%emt 0:00:11]} 39. Qe2 {[%emt 0:01:06] [#]} f5 $2 {[%emt 0:01:16]} (39... Qxd4 40. Rd1 Qb6 (40... Rxf4 $2 {perishes.} 41. Rxd4 Rxd4 42. e6 $18) 41. e6 (41. Rxd7 Rh4+ 42. Kg3 Rh1 $18) 41... fxe6 (41... Rh4+ $2 42. Kg3 $18) 42. a5 $18 (42. Rxd7 Rh4+ 43. Kg3 Rh1 $18)) (39... Qe6 $1 $17 40. f5 Rh4+ 41. Kg3 Qd5 42. Kxh4 Qxd4+ 43. Kh3 Qxa1) 40. e6 $16 {[%emt 0:00:17]} Qxd4 $2 {[%emt 0:01:59][%mdl 8192]} (40... h6 $16) 41. Rd1 $18 {[%emt 0:00:25]} ({Not} 41. exd7 Qxd7 42. Qxc4+ Kh8 $16) 41... Qc3 {[%emt 0:00:30] [#]} 42. Rf3 $1 {[%emt 0:00:33]} Rh4+ {[%emt 0:00:29]} 43. Kg3 {[%emt 0:00:45]} Rg4+ {[%emt 0:00:28]} 44. Kh3 {[%emt 0:00:23]} 1-0

[Event "7th Sharjah Masters 2024"]
[Site "Sharjah"]
[Date "2024.05.17"]
[Round "4.30"]
[White "Bharath Subramaniyam H"]
[Black "Narayanan S L"]
[Result "1-0"]
[ECO "B31"]
[WhiteElo "2545"]
[BlackElo "2695"]
[Annotator "TA"]
[PlyCount "79"]
[EventDate "2024.05.13"]
[EventType "swiss"]
[EventCountry "UAE"]
[SourceTitle "playchess.com"]
[Source "ChessBase"]
[SourceQuality "1"]
[TimeControl "5400+30"]

{[%evp 10,79,10,16,16,0,0,0,0,0,37,-12,-26,-90,-56,-104,-80,-88,-80,-108,-88,-98,-18,-24,52,23,53,0,0,0,0,0,293,298,312,314,302,302,401,417,424,444,500,488,568,592,645,621,644,436,446,441,437,437,432,477,469,456,465,317,310,322,289,311,410,388,415,408,496,491,619,482]} 1. e4 {[%emt 0:00:05]} c5 {[%emt 0:00:10]} 2. Nf3 {[%emt 0:00:06]} Nc6 {[%emt 0:00:05]} 3. Nc3 {[%emt 0:00:15]} g6 {[%emt 0:00:23]} 4. Bb5 {[%emt 0:01:01]} Bg7 {[%emt 0:00:13]} 5. O-O {[%emt 0:00:07]} d6 {[%emt 0:00:17]} 6. e5 {[%emt 0:05:16]} dxe5 {[%emt 0:00:50]} 7. Bxc6+ {[%emt 0:00:07]} bxc6 {[%emt 0:00:06]} 8. d3 {[%emt 0:00:42]} c4 {[%emt 0:03:22] The position is equal.} 9. Re1 {[%emt 0:13:19]} Qc7 {[%emt 0:03:46]} 10. dxc4 {[%emt 0:13:22]} (10. h3 $14) 10... f5 $11 {[%emt 0:00:15]} 11. Be3 {[%emt 0:17:21]} (11. g3 $11 {remains equal.}) 11... Nf6 {[%emt 0:04:33]} 12. Bc5 {[%emt 0:09:40]} (12. Qd2 $15) 12... e4 $17 {[%emt 0:00:53][%cal Oa8b8]} 13. Nd2 {[%emt 0:00:29]} O-O {[%emt 0:12:30]} 14. f3 {[%emt 0:06:23] [#]} Rb8 $1 {[%emt 0:10:03]} 15. Rb1 {[%emt 0:04:15]} Be6 {[%emt 0:17:54]} (15... Rd8 $17 {Hoping for ...Bh6.} 16. Qe2 Nd7) 16. Qe2 $1 $11 {[%emt 0:03:13][%cal Rf3e4]} Kh8 {[%emt 0:16:07]} (16... Nd7 $11 17. Bxe7 Bd4+ 18. Kh1 Rf7) 17. Kh1 {[%emt 0:09:41][%cal Rf3e4]} Rbd8 {[%emt 0:03:59]} 18. Bg1 {[%emt 0:05:47]} (18. Rbd1 $14) 18... Nh5 {[%emt 0:06:52]} 19. fxe4 {[%emt 0:04:13]} Nf4 {[%emt 0:00:20]} 20. Qe3 {[%emt 0:00:48]} c5 $2 {[%emt 0:12:43][%mdl 8192] White stays focused until the end.} 21. Nd5 $18 {[%emt 0:01:55]} (21. Qxc5 $2 Qxc5 22. Bxc5 Rxd2 $19) 21... Bxd5 {[%emt 0:00:56]} 22. exd5 {[%emt 0:00:23]} (22. cxd5 Bd4 23. Qb3 fxe4 $18) 22... e5 {[%emt 0:00:29]} 23. Qxc5 {[%emt 0:01:12]} (23. dxe6 $6 Nxe6 (23... Bd4 $2 24. Qg3 $18) 24. Nb3 Rd6 (24... Nd4 $2 25. Qe7 $18) 25. Nxc5 Nxc5 $16) 23... Qf7 {[%emt 0:00:04]} 24. Qxa7 {[%emt 0:00:29]} Rd7 {[%emt 0:00:03][%cal Bd8d7,Bd7e7,Be7f7,Bf7f8][%mdl 32]} 25. Qe3 {[%emt 0:00:44]} g5 {[%emt 0:00:02]} 26. Nf3 {[%emt 0:00:58][%cal Bd2f3,Bf3e5,Be5d3][%mdl 32]} Qh5 {[%emt 0:00:14]} 27. Nxe5 {[%emt 0:01:01]} Re7 {[%emt 0:00:05]} 28. Qa3 {[%emt 0:00:38]} Rfe8 {[%emt 0:01:37][%cal Bf8e8,Be8e2,Be2c2][%mdl 32]} 29. Nd3 {[%emt 0:00:39]} ({Less strong is} 29. Nf3 Qg4 30. g3 (30. Rxe7 $2 Qxg2#) 30... Ne2 $18) 29... Ne2 {[%emt 0:00:09]} ({But not} 29... Qg4 $2 30. Nxf4 (30. Rxe7 $2 Qxg2#) 30... Rxe1 31. Rxe1) 30. Bf2 {[%emt 0:00:11] Dodges Ng3+} f4 {[%emt 0:00:09]} 31. d6 {[%emt 0:00:41]} Rf7 {[%emt 0:00:09]} 32. Rxe2 {[%emt 0:00:52]} Rxe2 {[%emt 0:00:05]} 33. Qa8+ {[%emt 0:00:33]} Rf8 {[%emt 0:00:35]} 34. Qf3 {[%emt 0:00:17]} Qxf3 {[%emt 0:00:17]} 35. gxf3 {[%emt 0:00:01]} Rxc2 {[%emt 0:00:01]} 36. Rd1 {[%emt 0:01:00] Dodges Rd2} Bxb2 {[%emt 0:00:05]} 37. Nxb2 {[%emt 0:00:44]} Rxf2 {[%emt 0:00:04] [#]} 38. Nd3 {[%emt 0:00:21]} Rxa2 {[%emt 0:00:20]} ({Not} 38... Rxf3 39. c5 Rh3 40. c6 $18) 39. d7 {[%emt 0:00:32]} Ra5 {[%emt 0:03:03]} 40. Nb4 {[%emt 0:00:30] Weighted Error Value: White=0.24 (precise) /Black=0.38.  Loses game:     	---       	Black=1      Mistake:       	White=4     	Black=2      Inaccurate:     	White=2     	Black=5      OK:         	White=12    	Black=12     Best:        	White=3     	Black=2      Strong:       	White=1     	Black=1} 1-0

[Event "7th Sharjah Masters 2024"]
[Site "Sharjah"]
[Date "2024.05.17"]
[Round "4.31"]
[White "Gavrilescu, David"]
[Black "Sjugirov, Sanan"]
[Result "1/2-1/2"]
[ECO "B56"]
[WhiteElo "2540"]
[BlackElo "2692"]
[Annotator "TA"]
[PlyCount "116"]
[EventDate "2024.05.13"]
[EventType "swiss"]
[EventCountry "UAE"]
[SourceTitle "playchess.com"]
[Source "ChessBase"]
[SourceQuality "1"]
[TimeControl "5400+30"]

{[%evp 21,116,34,29,31,35,0,0,0,16,0,49,49,65,0,59,-11,-33,-33,-16,-14,0,0,0,-27,-29,-51,-41,-38,-40,-48,-20,-37,0,0,0,0,38,28,28,29,50,21,34,13,36,23,37,0,47,44,46,36,46,35,35,18,88,58,44,0,44,0,45,22,41,43,39,0,44,0,50,26,43,0,33,34,47,47,55,0,25,0,0,0,36,37,35,27,27,27,47,47,47,47,47,41,41]} 1. e4 {[%emt 1:31:00]} c5 {[%emt 1:31:00]} 2. Nf3 {[%emt 0:00:30]} d6 {[%emt 0:00:30]} 3. d4 {[%emt 0:00:30]} cxd4 {[%emt 0:00:30]} 4. Nxd4 {[%emt 0:00:30]} Nf6 {[%emt 0:00:30]} 5. Nc3 {[%emt 0:00:30]} Nc6 {[%emt 0:00:30]} 6. f3 {[%emt 0:00:30]} e5 {[%emt 0:00:30]} 7. Nb3 {[%emt 0:00:30]} Be6 {[%emt 0:00:30]} 8. Be3 {[%emt 0:00:30]} Be7 {[%emt 0:00:30]} 9. Qd2 {[%emt 0:00:30]} O-O {[%emt 0:00:30]} 10. Nd5 {[%emt 0:00:30]} Bxd5 {[%emt 0:00:30]} 11. exd5 {[%emt 0:00:30]} Nb8 {[%emt 0:00:30]} 12. c4 {[%emt 0:00:30]} a5 {[%emt 0:00:30]} 13. Bd3 {[%emt 0:00:30]} Nbd7 {[%emt 0:00:30]} (13... a4 $5 14. Nc1 $8 e4 15. fxe4 Ng4 $11) 14. O-O {[%emt 0:00:30] The position is equal.} g6 {[%emt 0:00:30]} (14... a4 $5 15. Nc1 $8 b5 $11) 15. Nc1 {[%emt 0:00:30]} Nc5 {[%emt 0:00:30]} (15... Rc8 $11) 16. Bc2 $14 {[%emt 0:00:30]} Rb8 {[%emt 0:00:30]} 17. a3 {[%emt 0:00:30] White is more active.} (17. Nb3 $14) 17... Qc7 {[%emt 0:00:30]} (17... Rc8 $1 $11) 18. Nb3 {[%emt 0:00:30]} (18. Ne2 $1 $14) 18... Nxb3 $11 {[%emt 0:00:30]} 19. Bxb3 {[%emt 0:00:30] [#]} a4 $1 {[%emt 0:00:30]} 20. Ba2 {[%emt 0:00:30]} Nd7 {[%emt 0:00:30]} 21. Qb4 {[%emt 0:00:30]} Ra8 {[%emt 0:00:30]} 22. b3 {[%emt 0:00:30]} Nc5 {[%emt 0:00:30]} 23. Bxc5 {[%emt 0:00:30]} dxc5 {[%emt 0:00:30]} ({Of course not} 23... Qxc5+ $6 24. Qxc5 dxc5 25. bxa4 $16) 24. Qd2 {[%emt 0:00:30]} axb3 {[%emt 0:00:30]} 25. Bxb3 {[%emt 0:00:30][%cal Ba2b3,Bb3c2,Bc2d3][%mdl 32]} Bd6 {[%emt 0:00:30][%cal Oe5e4]} 26. g3 {[%emt 0:00:30]} h5 {[%emt 0:00:30][%cal Oe5e4]} (26... b5 $5) 27. Bc2 {[%emt 0:00:30]} Kg7 {[%emt 0:00:30]} 28. Qc3 {[%emt 0:00:30]} f6 {[%emt 0:00:30][%cal Oh5h4]} 29. Rae1 {[%emt 0:00:30]} Rf7 {[%emt 0:00:30]} 30. Re2 {[%emt 0:00:30]} Rh8 {[%emt 0:00:30] Black is weak on the light squares} 31. Rg2 {[%emt 0:00:30]} Rh6 {[%emt 0:00:30]} 32. Bd3 {[%emt 0:00:30]} Kg8 {[%emt 0:00:30]} 33. Qd2 {[%emt 0:00:30]} Kg7 {[%emt 0:00:30][%cal Ob7b5]} 34. Qc3 {[%emt 0:00:30]} Re7 {[%emt 0:00:30]} (34... Kg8 $11 {should be considered.}) 35. Rb1 $14 {[%emt 0:00:30]} Rh8 {[%emt 0:00:30]} 36. Re1 {[%emt 0:00:30]} Kf7 {[%emt 0:00:30]} 37. Bb1 {[%emt 0:00:30]} Rh7 {[%emt 0:00:30]} 38. Rf1 {[%emt 0:00:30]} Kg7 {[%emt 0:00:30]} (38... f5 $11) 39. Bc2 {[%emt 0:00:30]} Rf7 {[%emt 0:00:30]} 40. Bd3 {[%emt 0:00:30]} Rh6 {[%emt 0:00:30]} 41. Bc2 {[%emt 0:00:30]} Rh8 {[%emt 0:00:30]} 42. Bb1 {[%emt 0:00:30]} Qe7 {[%emt 0:00:30]} 43. Re1 {[%emt 0:00:30]} Qd8 {[%emt 0:00:30]} 44. Rf1 {[%emt 0:00:30]} Qc7 {[%emt 0:00:30]} 45. Bc2 {[%emt 0:00:30]} Re8 {[%emt 0:00:30]} (45... Rh6 $11) 46. Ba4 {[%emt 0:00:30]} Ree7 {[%emt 0:00:30]} 47. Bc2 {[%emt 0:00:30]} Qd7 {[%emt 0:00:30]} 48. Re1 {[%emt 0:00:30]} Qe8 {[%emt 0:00:30]} 49. Rge2 {[%emt 0:00:30]} Qh8 {[%emt 0:00:30] [#]} 50. f4 {[%emt 0:00:30]} h4 {[%emt 0:00:30]} 51. Qd3 {[%emt 0:00:30]} Qh6 {[%emt 0:00:30]} 52. f5 {[%emt 0:00:30]} g5 {[%emt 0:00:30][%cal Oe5e4]} 53. g4 {[%emt 0:00:30]} Qh8 {[%emt 0:00:30]} 54. Ba4 {[%emt 0:00:30]} Qa8 {[%emt 0:00:30]} 55. Bb5 {[%emt 0:00:30]} b6 {[%emt 0:00:30]} 56. Re4 {[%emt 0:00:30] White is slightly better.} Ra7 {[%emt 0:00:30]} 57. Ra1 {[%emt 0:00:30]} Ra5 {[%emt 0:00:30]} 58. a4 {[%emt 0:00:30]} Rfa7 {[%emt 0:00:30] Weighted Error Value: White=0.18 (very precise) /Black=0.17 (very precise) .  Mistake:       	White=3     	Black=5      Inaccurate:     	White=10    	Black=8      OK:         	White=10    	Black=14} 1/2-1/2